[Event "*** Qualifier 2: Titled Tuesday 3|2 Blitz"]
[Site "Chess.com"]
[Date "2017.04.11"]
[Round "6"]
[White "Sebastian"]
[Black "penguingm1"]
[Result "1/2-1/2"]
[WhiteElo "2688"]
[BlackElo "2590"]
[TimeControl "180+2"]
[EndTime "14:24:21 PDT"]
[Termination "Game drawn by agreement"]

1. e4 {[%clk 0:03:02]} 1... e6 {[%clk 0:02:59.5]} 2. d4 {[%clk 0:03:02.7]} 2...
d5 {[%clk 0:02:54.1]} 3. Nc3 {[%clk 0:03:04]} 3... dxe4 {[%clk 0:02:55.6]} 4.
Nxe4 {[%clk 0:03:04.7]} 4... Nd7 {[%clk 0:02:57]} 5. Nf3 {[%clk 0:03:02.9]} 5...
Ngf6 {[%clk 0:02:58.3]} 6. Nxf6+ {[%clk 0:03:03.8]} 6... Nxf6 {[%clk 0:03:00.2]}
7. Ne5 {[%clk 0:03:05]} 7... c5 {[%clk 0:02:39]} 8. Bb5+ {[%clk 0:02:54.1]} 8...
Bd7 {[%clk 0:02:35.4]} 9. Nxd7 {[%clk 0:02:48.5]} 9... Qa5+ {[%clk 0:02:35.7]}
10. c3 {[%clk 0:02:33.5]} 10... Qxb5 {[%clk 0:02:32.9]} 11. Nxf8 {[%clk
0:02:33.2]} 11... Kxf8 {[%clk 0:02:20.9]} 12. dxc5 {[%clk 0:02:32.7]} 12... Qxc5
{[%clk 0:02:21.5]} 13. Be3 {[%clk 0:02:19.8]} 13... Qb5 {[%clk 0:02:22.7]} 14.
Qb3 {[%clk 0:02:19.6]} 14... Qc6 {[%clk 0:00:49.3]} 15. O-O {[%clk 0:02:18.5]}
15... h6 {[%clk 0:00:43.8]} 16. Rad1 {[%clk 0:02:17.8]} 16... Kg8 {[%clk
0:00:43.1]} 17. Rd4 {[%clk 0:02:18.5]} 17... b6 {[%clk 0:00:39.9]} 18. Rfd1
{[%clk 0:02:17.5]} 18... Re8 {[%clk 0:00:35]} 19. h3 {[%clk 0:02:10.2]} 19...
Kh7 {[%clk 0:00:25.5]} 20. Qc2+ {[%clk 0:02:10.5]} 20... g6 {[%clk 0:00:27]} 21.
Rd6 {[%clk 0:01:52.7]} 21... Qc7 {[%clk 0:00:20.4]} 22. Qa4 {[%clk 0:01:52.4]}
22... Re7 {[%clk 0:00:20.1]} 23. Qh4 {[%clk 0:00:30.4]} 23... Nd5 {[%clk
0:00:21.4]} 24. Qg3 {[%clk 0:00:20]} 24... Nxe3 {[%clk 0:00:17.1]} 25. Qxe3
{[%clk 0:00:20.2]} 25... Rc8 {[%clk 0:00:16.2]} 26. Qd2 {[%clk 0:00:18.4]} 26...
Qc5 {[%clk 0:00:16.4]} 27. Qf4 {[%clk 0:00:16.5]} 27... Kg7 {[%clk 0:00:15.5]}
28. h4 {[%clk 0:00:16.2]} 28... Rcc7 {[%clk 0:00:15]} 29. Rd8 {[%clk 0:00:15.9]}
29... e5 {[%clk 0:00:11.4]} 30. Qe4 {[%clk 0:00:17.1]} 30... Qc6 {[%clk
0:00:12.7]} 31. R1d5 {[%clk 0:00:15.8]} 31... Qf6 {[%clk 0:00:09.4]} 32. R5d6
{[%clk 0:00:15]} 32... Re6 {[%clk 0:00:08.9]} 33. R6d7 {[%clk 0:00:13.6]} 33...
Rxd7 {[%clk 0:00:09.3]} 34. Rxd7 {[%clk 0:00:15.1]} 34... Re7 {[%clk 0:00:09.9]}
35. Rxe7 {[%clk 0:00:10.6]} 35... Qxe7 {[%clk 0:00:11.8]} 36. g3 {[%clk
0:00:11.6]} 36... Qd6 {[%clk 0:00:11.7]} 37. Kg2 {[%clk 0:00:12.7]} 37... a5
{[%clk 0:00:13.2]} 38. a4 {[%clk 0:00:12.6]} 38... h5 {[%clk 0:00:14.7]} 39. b4
{[%clk 0:00:13.2]} 39... Qc7 {[%clk 0:00:14.5]} 40. bxa5 {[%clk 0:00:11.7]}
40... bxa5 {[%clk 0:00:16.4]} 41. c4 {[%clk 0:00:13]} 41... Qc5 {[%clk
0:00:17.4]} 42. Qd3 {[%clk 0:00:11]} 42... Qc6+ {[%clk 0:00:07.5]} 43. Kg1
{[%clk 0:00:08.8]} 43... Qxa4 {[%clk 0:00:08]} 44. Qd5 {[%clk 0:00:10.3]} 44...
Qa1+ {[%clk 0:00:06.5]} 45. Kg2 {[%clk 0:00:11.7]} 45... Qd4 {[%clk 0:00:05.6]}
46. Qxa5 {[%clk 0:00:10.8]} 46... Qe4+ {[%clk 0:00:06]} 47. Kg1 {[%clk
0:00:11.1]} 47... Qxc4 {[%clk 0:00:05.8]} 48. Qxe5+ {[%clk 0:00:12.2]} 48... Kh7
{[%clk 0:00:07.4]} 1/2-1/2

[Event "*** Qualifier 2: Titled Tuesday 3|2 Blitz"]
[Site "Chess.com"]
[Date "2017.04.11"]
[Round "6"]
[White "ruvat"]
[Black "prochn"]
[Result "1-0"]
[WhiteElo "2219"]
[BlackElo "2175"]
[TimeControl "180+2"]
[EndTime "14:24:26 PDT"]
[Termination "ruvat won by resignation"]

1. d4 {[%clk 0:02:56.8]} 1... d5 {[%clk 0:03:00.5]} 2. Nf3 {[%clk 0:02:56.2]}
2... Nf6 {[%clk 0:03:00.7]} 3. c4 {[%clk 0:02:56.4]} 3... c6 {[%clk 0:03:01.7]}
4. Qc2 {[%clk 0:02:55.9]} 4... a6 {[%clk 0:02:56]} 5. Bf4 {[%clk 0:02:55.2]}
5... g6 {[%clk 0:02:40.6]} 6. e3 {[%clk 0:02:55]} 6... Bg7 {[%clk 0:02:41.1]} 7.
Nbd2 {[%clk 0:02:50.9]} 7... O-O {[%clk 0:02:41.9]} 8. Bd3 {[%clk 0:02:50.6]}
8... Nh5 {[%clk 0:02:36.9]} 9. Bg5 {[%clk 0:02:49.8]} 9... Nd7 {[%clk
0:02:25.1]} 10. Rc1 {[%clk 0:02:40.9]} 10... dxc4 {[%clk 0:02:10.4]} 11. Nxc4
{[%clk 0:02:29.4]} 11... h6 {[%clk 0:02:04.4]} 12. Bh4 {[%clk 0:02:29.4]} 12...
g5 {[%clk 0:02:05.7]} 13. Bg3 {[%clk 0:02:29.4]} 13... Nxg3 {[%clk 0:01:26.8]}
14. hxg3 {[%clk 0:02:28.7]} 14... e6 {[%clk 0:01:26.7]} 15. b4 {[%clk
0:02:17.1]} 15... Qe7 {[%clk 0:01:18.7]} 16. a3 {[%clk 0:02:16.4]} 16... f5
{[%clk 0:01:14]} 17. Nfe5 {[%clk 0:02:13.2]} 17... Nxe5 {[%clk 0:01:08.7]} 18.
Nxe5 {[%clk 0:02:11.1]} 18... Bd7 {[%clk 0:01:05.2]} 19. Ng6 {[%clk 0:02:10.2]}
19... Qf6 {[%clk 0:01:04.6]} 20. Nxf8 {[%clk 0:02:10.3]} 20... Rxf8 {[%clk
0:01:05.9]} 21. Qc5 {[%clk 0:01:56.5]} 21... Rf7 {[%clk 0:00:58.8]} 22. O-O
{[%clk 0:01:43.3]} 22... h5 {[%clk 0:00:54.6]} 23. f4 {[%clk 0:01:33.3]} 23...
h4 {[%clk 0:00:52]} 24. gxh4 {[%clk 0:01:27.6]} 24... gxh4 {[%clk 0:00:52.5]}
25. Rf3 {[%clk 0:01:26.7]} 25... Bf8 {[%clk 0:00:52.8]} 26. Qc2 {[%clk
0:01:14.2]} 26... Rg7 {[%clk 0:00:51.4]} 27. Qf2 {[%clk 0:01:13.6]} 27... Be8
{[%clk 0:00:48.4]} 28. Rh3 {[%clk 0:01:12.7]} 28... Be7 {[%clk 0:00:48.2]} 29.
Be2 {[%clk 0:01:08.6]} 29... Bd8 {[%clk 0:00:31.4]} 30. Bf3 {[%clk 0:01:05.2]}
30... Kf8 {[%clk 0:00:32.2]} 31. Rc2 {[%clk 0:00:58.1]} 31... Rg8 {[%clk
0:00:28.5]} 32. g3 {[%clk 0:00:57.6]} 32... Rg7 {[%clk 0:00:27.3]} 33. Kh2
{[%clk 0:00:58.1]} 33... hxg3+ {[%clk 0:00:27.5]} 34. Rxg3 {[%clk 0:00:58.4]}
34... Qh4+ {[%clk 0:00:27.9]} 35. Kg2 {[%clk 0:00:57.5]} 35... Rh7 {[%clk
0:00:27.8]} 36. Qg1 {[%clk 0:00:48.8]} 36... Qh6 {[%clk 0:00:19.1]} 37. Kf1
{[%clk 0:00:45.8]} 37... Bh4 {[%clk 0:00:19.1]} 38. Rh2 {[%clk 0:00:38.6]} 38...
c5 {[%clk 0:00:19]} 39. Rgh3 {[%clk 0:00:30.1]} 39... Bb5+ {[%clk 0:00:18.5]}
40. Be2 {[%clk 0:00:27.7]} 40... Qh5 {[%clk 0:00:17.9]} 41. Qg2 {[%clk
0:00:20.5]} 41... Rg7 {[%clk 0:00:17]} 42. Qf3 {[%clk 0:00:18.8]} 42... Bxe2+
{[%clk 0:00:14.7]} 43. Kxe2 {[%clk 0:00:17.2]} 43... Qxf3+ {[%clk 0:00:13.5]}
44. Kxf3 {[%clk 0:00:17.1]} 44... Be1 {[%clk 0:00:13.1]} 45. bxc5 {[%clk
0:00:17]} 45... Bc3 {[%clk 0:00:13.8]} 46. Rh8+ {[%clk 0:00:17.4]} 46... Ke7
{[%clk 0:00:13.8]} 47. R8h7 {[%clk 0:00:18.6]} 47... Kf7 {[%clk 0:00:14.6]} 48.
Rxg7+ {[%clk 0:00:18.8]} 48... Kxg7 {[%clk 0:00:16.5]} 49. Rc2 {[%clk
0:00:19.7]} 49... Ba5 {[%clk 0:00:16.8]} 50. c6 {[%clk 0:00:20.6]} 1-0

[Event "*** Qualifier 2: Titled Tuesday 3|2 Blitz"]
[Site "Chess.com"]
[Date "2017.04.11"]
[Round "6"]
[White "Rating-Schmating"]
[Black "MasterLeif"]
[Result "1-0"]
[WhiteElo "2257"]
[BlackElo "2298"]
[TimeControl "180+2"]
[EndTime "14:24:39 PDT"]
[Termination "Rating-Schmating won by checkmate"]

1. e4 {[%clk 0:03:01.9]} 1... Nf6 {[%clk 0:02:58]} 2. e5 {[%clk 0:03:02.8]} 2...
Nd5 {[%clk 0:02:59]} 3. c4 {[%clk 0:03:02.5]} 3... Nb6 {[%clk 0:03:00]} 4. a4
{[%clk 0:03:03.8]} 4... d6 {[%clk 0:02:59.4]} 5. a5 {[%clk 0:03:05.2]} 5... N6d7
{[%clk 0:02:59.1]} 6. exd6 {[%clk 0:03:06.6]} 6... exd6 {[%clk 0:02:59.1]} 7. d4
{[%clk 0:03:07.4]} 7... Be7 {[%clk 0:03:00]} 8. Nf3 {[%clk 0:03:08.1]} 8... O-O
{[%clk 0:03:01.1]} 9. Bd3 {[%clk 0:03:09]} 9... Re8 {[%clk 0:03:00.1]} 10. O-O
{[%clk 0:03:10.2]} 10... Nf6 {[%clk 0:03:00.5]} 11. Nc3 {[%clk 0:03:11]} 11...
Bg4 {[%clk 0:02:58.5]} 12. Bg5 {[%clk 0:03:10.9]} 12... Nbd7 {[%clk 0:02:58.7]}
13. Be2 {[%clk 0:03:10.7]} 13... h6 {[%clk 0:02:58.4]} 14. Bh4 {[%clk
0:03:10.6]} 14... Ne4 {[%clk 0:02:47.9]} 15. Bxe7 {[%clk 0:02:57.9]} 15... Qxe7
{[%clk 0:02:27]} 16. Nd5 {[%clk 0:02:57]} 16... Qd8 {[%clk 0:02:27.8]} 17. Ne3
{[%clk 0:02:57.8]} 17... Bh5 {[%clk 0:02:17.4]} 18. h3 {[%clk 0:02:56.7]} 18...
Bg6 {[%clk 0:02:16.4]} 19. Bd3 {[%clk 0:02:56.5]} 19... c6 {[%clk 0:01:50]} 20.
Qc2 {[%clk 0:02:53.1]} 20... Ndf6 {[%clk 0:01:44.8]} 21. Nd2 {[%clk 0:02:52.1]}
21... Nxd2 {[%clk 0:01:30.5]} 22. Qxd2 {[%clk 0:02:50]} 22... Bxd3 {[%clk
0:01:31.3]} 23. Qxd3 {[%clk 0:02:51]} 23... d5 {[%clk 0:01:30.3]} 24. c5 {[%clk
0:02:42.2]} 24... Ne4 {[%clk 0:01:30.1]} 25. Rfe1 {[%clk 0:02:37.6]} 25... Qh4
{[%clk 0:01:23.4]} 26. Qc2 {[%clk 0:02:27]} 26... Re6 {[%clk 0:01:11.4]} 27. Nf5
{[%clk 0:02:22.7]} 27... Qg5 {[%clk 0:01:09]} 28. Nd6 {[%clk 0:02:05.9]} 28...
Rg6 {[%clk 0:01:07.7]} 29. f4 {[%clk 0:02:00.8]} 29... Qxf4 {[%clk 0:00:47.3]}
30. Nxe4 {[%clk 0:02:01.3]} 30... dxe4 {[%clk 0:00:47.8]} 31. Qxe4 {[%clk
0:02:02.2]} 31... Qxe4 {[%clk 0:00:20.7]} 32. Rxe4 {[%clk 0:02:02.7]} 32... Re6
{[%clk 0:00:22]} 33. Rxe6 {[%clk 0:01:57.2]} 33... fxe6 {[%clk 0:00:23.9]} 34.
a6 {[%clk 0:01:58.1]} 34... Rb8 {[%clk 0:00:23.3]} 35. Kh2 {[%clk 0:01:55.3]}
35... Kf7 {[%clk 0:00:19.6]} 36. Kg3 {[%clk 0:01:49.3]} 36... b6 {[%clk
0:00:20]} 37. Rc1 {[%clk 0:01:38.8]} 37... Ke7 {[%clk 0:00:10.3]} 38. b4 {[%clk
0:01:35.6]} 38... bxc5 {[%clk 0:00:10.5]} 39. bxc5 {[%clk 0:01:26.3]} 39... Rb4
{[%clk 0:00:10]} 40. Kf3 {[%clk 0:01:21.5]} 40... Ra4 {[%clk 0:00:06.5]} 41. Rb1
{[%clk 0:01:22.9]} 41... Rxa6 {[%clk 0:00:07.1]} 42. Rb7+ {[%clk 0:01:24.5]}
42... Kf6 {[%clk 0:00:08.7]} 43. Ke4 {[%clk 0:01:26.2]} 43... Ra2 {[%clk
0:00:07.3]} 44. g4 {[%clk 0:01:26.6]} 44... g5 {[%clk 0:00:06.6]} 45. Rc7 {[%clk
0:01:27.4]} 45... Ra6 {[%clk 0:00:07.7]} 46. Rh7 {[%clk 0:01:26]} 46... Kg6
{[%clk 0:00:07.1]} 47. Rb7 {[%clk 0:01:27.6]} 47... Kf6 {[%clk 0:00:06.2]} 48.
Rh7 {[%clk 0:01:28.7]} 48... Kg6 {[%clk 0:00:05.5]} 49. Rh8 {[%clk 0:01:30.3]}
49... Kg7 {[%clk 0:00:06.5]} 50. Rc8 {[%clk 0:01:28.7]} 50... Kf6 {[%clk
0:00:07]} 51. Rf8+ {[%clk 0:01:29.8]} 51... Kg6 {[%clk 0:00:07.9]} 52. Ke5
{[%clk 0:01:30.3]} 52... Ra4 {[%clk 0:00:05.7]} 53. Rf6+ {[%clk 0:01:30.8]}
53... Kg7 {[%clk 0:00:06.7]} 54. Rxe6 {[%clk 0:01:32.1]} 54... a5 {[%clk
0:00:06.2]} 55. Rxc6 {[%clk 0:01:33.3]} 55... Ra1 {[%clk 0:00:08.1]} 56. d5
{[%clk 0:01:34.1]} 56... a4 {[%clk 0:00:10]} 57. d6 {[%clk 0:01:34.5]} 57... a3
{[%clk 0:00:11.9]} 58. d7 {[%clk 0:01:30.6]} 58... Re1+ {[%clk 0:00:09]} 59. Kf5
{[%clk 0:01:18.6]} 59... Rd1 {[%clk 0:00:05.2]} 60. Rd6 {[%clk 0:01:19.3]} 60...
Rxd6 {[%clk 0:00:06.2]} 61. cxd6 {[%clk 0:01:20.1]} 61... a2 {[%clk 0:00:08.1]}
62. d8=Q {[%clk 0:01:21.3]} 62... a1=Q {[%clk 0:00:10]} 63. Qe7+ {[%clk
0:01:22.6]} 63... Kg8 {[%clk 0:00:10.7]} 64. Kg6 {[%clk 0:01:22.9]} 64... Qb1+
{[%clk 0:00:08.7]} 65. Kxh6 {[%clk 0:01:24.1]} 65... Qa1 {[%clk 0:00:03.5]} 66.
Qe8# {[%clk 0:01:23.8]} 1-0

[Event "*** Qualifier 2: Titled Tuesday 3|2 Blitz"]
[Site "Chess.com"]
[Date "2017.04.11"]
[Round "6"]
[White "igorkovalenko"]
[Black "Konavets"]
[Result "0-1"]
[WhiteElo "2643"]
[BlackElo "2615"]
[TimeControl "180+2"]
[EndTime "14:24:40 PDT"]
[Termination "Konavets won by resignation"]

1. c4 {[%clk 0:03:02]} 1... e5 {[%clk 0:03:00]} 2. g3 {[%clk 0:03:02.2]} 2...
Nf6 {[%clk 0:03:01.6]} 3. Nc3 {[%clk 0:03:03.3]} 3... d5 {[%clk 0:03:03]} 4.
cxd5 {[%clk 0:03:04.5]} 4... Nxd5 {[%clk 0:03:04.9]} 5. Bg2 {[%clk 0:03:06.3]}
5... Nb6 {[%clk 0:03:06.3]} 6. Nf3 {[%clk 0:03:07.2]} 6... Nc6 {[%clk 0:03:08]}
7. d3 {[%clk 0:03:08.6]} 7... Be7 {[%clk 0:03:09.5]} 8. O-O {[%clk 0:03:09.4]}
8... O-O {[%clk 0:03:11]} 9. Be3 {[%clk 0:03:10]} 9... Re8 {[%clk 0:03:12.6]}
10. Rc1 {[%clk 0:03:11.6]} 10... Bf8 {[%clk 0:03:13.6]} 11. Ne4 {[%clk 0:03:12]}
11... Nd5 {[%clk 0:03:03.7]} 12. Bc5 {[%clk 0:03:11.6]} 12... Bxc5 {[%clk
0:03:04.9]} 13. Nxc5 {[%clk 0:03:13.5]} 13... b6 {[%clk 0:03:04.3]} 14. Ne4
{[%clk 0:03:10.5]} 14... Bb7 {[%clk 0:03:04.3]} 15. a3 {[%clk 0:03:09.6]} 15...
a5 {[%clk 0:03:04.8]} 16. Qa4 {[%clk 0:03:09.6]} 16... Qd7 {[%clk 0:02:21.6]}
17. e3 {[%clk 0:02:50.4]} 17... Rad8 {[%clk 0:02:14.1]} 18. Rfd1 {[%clk
0:02:51.2]} 18... Nd4 {[%clk 0:02:01.7]} 19. Qxd7 {[%clk 0:02:49.8]} 19... Nxf3+
{[%clk 0:02:03]} 20. Bxf3 {[%clk 0:02:51.4]} 20... Rxd7 {[%clk 0:02:04.6]} 21.
d4 {[%clk 0:02:43.3]} 21... f5 {[%clk 0:02:04.4]} 22. Ng5 {[%clk 0:02:33.8]}
22... h6 {[%clk 0:01:04.7]} 23. Bh5 {[%clk 0:02:33.9]} 23... Ree7 {[%clk
0:00:45.3]} 24. Nf3 {[%clk 0:02:34.8]} 24... Nf6 {[%clk 0:00:46.5]} 25. Nxe5
{[%clk 0:02:30.3]} 25... Nxh5 {[%clk 0:00:47.4]} 26. Nxd7 {[%clk 0:02:31.7]}
26... Rxd7 {[%clk 0:00:49.3]} 27. Rc2 {[%clk 0:02:27.1]} 27... Be4 {[%clk
0:00:47.3]} 28. Rc3 {[%clk 0:02:28.1]} 28... Nf6 {[%clk 0:00:48.1]} 29. Rdc1
{[%clk 0:02:29.6]} 29... Nd5 {[%clk 0:00:49.3]} 30. Rc6 {[%clk 0:02:30.4]} 30...
Kf7 {[%clk 0:00:50.4]} 31. Kf1 {[%clk 0:02:31.5]} 31... Bf3 {[%clk 0:00:50.8]}
32. Ke1 {[%clk 0:02:26.9]} 32... Re7 {[%clk 0:00:40]} 33. Kd2 {[%clk 0:02:26.6]}
33... Re6 {[%clk 0:00:26.7]} 34. R6c4 {[%clk 0:02:16.6]} 34... Ke7 {[%clk
0:00:27.3]} 35. b4 {[%clk 0:02:17.5]} 35... axb4 {[%clk 0:00:27.1]} 36. axb4
{[%clk 0:02:19.4]} 36... Kd7 {[%clk 0:00:27.4]} 37. b5 {[%clk 0:02:20.5]} 37...
Re8 {[%clk 0:00:20.8]} 38. Ra4 {[%clk 0:02:21.5]} 38... Nf6 {[%clk 0:00:21.2]}
39. Ra7 {[%clk 0:02:22]} 39... Rc8 {[%clk 0:00:21.9]} 40. Ke1 {[%clk 0:02:17.7]}
40... g5 {[%clk 0:00:21.7]} 41. h3 {[%clk 0:02:14.7]} 41... h5 {[%clk
0:00:22.4]} 42. h4 {[%clk 0:02:14.9]} 42... g4 {[%clk 0:00:23.7]} 43. Rc3 {[%clk
0:02:13.3]} 43... Bd5 {[%clk 0:00:25.1]} 44. Rc2 {[%clk 0:02:11.9]} 44... Ne4
{[%clk 0:00:26.3]} 45. Rc1 {[%clk 0:02:07.3]} 45... Nd6 {[%clk 0:00:27.1]} 46.
Rb1 {[%clk 0:01:56.9]} 46... Bc4 {[%clk 0:00:27.7]} 47. Kd2 {[%clk 0:01:39.4]}
47... Bxb5 {[%clk 0:00:28.8]} 48. Ke1 {[%clk 0:01:38.2]} 48... Rb8 {[%clk
0:00:28.1]} 49. Rc1 {[%clk 0:01:38.9]} 49... Bc4 {[%clk 0:00:28.7]} 50. Rb1
{[%clk 0:01:36.7]} 50... b5 {[%clk 0:00:30.1]} 51. Rb4 {[%clk 0:01:38]} 51...
Bd5 {[%clk 0:00:29.8]} 52. Ra5 {[%clk 0:01:28.3]} 52... Ra8 {[%clk 0:00:30.7]}
53. Rbxb5 {[%clk 0:01:28.8]} 53... Nxb5 {[%clk 0:00:31]} 54. Rxb5 {[%clk
0:01:30.7]} 54... Ra1+ {[%clk 0:00:32.2]} 55. Kd2 {[%clk 0:01:31.9]} 55... Ra2+
{[%clk 0:00:33.6]} 56. Ke1 {[%clk 0:01:33.5]} 56... Kd6 {[%clk 0:00:34.5]} 57.
Rb8 {[%clk 0:01:32.4]} 57... Ra1+ {[%clk 0:00:35.7]} 58. Kd2 {[%clk 0:01:32.6]}
58... Rf1 {[%clk 0:00:36.1]} 59. Rd8+ {[%clk 0:01:33.3]} 59... Ke6 {[%clk
0:00:36.4]} 60. Re8+ {[%clk 0:01:33.1]} 60... Kd7 {[%clk 0:00:35.5]} 61. Rh8
{[%clk 0:01:18.6]} 61... Rxf2+ {[%clk 0:00:36.3]} 62. Ke1 {[%clk 0:01:20]} 62...
Rf3 {[%clk 0:00:37.4]} 63. Rxh5 {[%clk 0:01:21.3]} 63... Rxe3+ {[%clk
0:00:38.8]} 64. Kd2 {[%clk 0:01:22.9]} 64... Rxg3 {[%clk 0:00:39.7]} 65. Rxf5
{[%clk 0:01:24]} 65... c6 {[%clk 0:00:39.1]} 66. Rg5 {[%clk 0:01:24.3]} 66...
Ke6 {[%clk 0:00:37.2]} 67. h5 {[%clk 0:01:25.6]} 67... Kf6 {[%clk 0:00:38.6]}
68. Rg6+ {[%clk 0:01:27.2]} 68... Kf5 {[%clk 0:00:40.2]} 69. Rg7 {[%clk
0:01:27.5]} 69... Rh3 {[%clk 0:00:41.7]} 0-1

[Event "*** Qualifier 2: Titled Tuesday 3|2 Blitz"]
[Site "Chess.com"]
[Date "2017.04.11"]
[Round "6"]
[White "brauliocuarta"]
[Black "jeaston1"]
[Result "1-0"]
[WhiteElo "2045"]
[BlackElo "2087"]
[TimeControl "180+2"]
[EndTime "14:24:40 PDT"]
[Termination "brauliocuarta won by resignation"]

1. d4 {[%clk 0:03:01.9]} 1... Nf6 {[%clk 0:02:59.2]} 2. c4 {[%clk 0:02:59.9]}
2... c5 {[%clk 0:03:00.2]} 3. d5 {[%clk 0:03:00.5]} 3... e6 {[%clk 0:03:01.6]}
4. Nc3 {[%clk 0:03:00.8]} 4... exd5 {[%clk 0:03:02.5]} 5. cxd5 {[%clk
0:03:02.7]} 5... d6 {[%clk 0:03:03.9]} 6. e4 {[%clk 0:03:03.7]} 6... g6 {[%clk
0:03:05.6]} 7. f4 {[%clk 0:03:04.5]} 7... Bg7 {[%clk 0:03:06.5]} 8. Bb5+ {[%clk
0:03:05.3]} 8... Nfd7 {[%clk 0:03:07.6]} 9. a4 {[%clk 0:03:06]} 9... O-O {[%clk
0:03:07.7]} 10. Nf3 {[%clk 0:03:07]} 10... a6 {[%clk 0:03:08.2]} 11. Bd3 {[%clk
0:02:56.3]} 11... Re8 {[%clk 0:03:04.6]} 12. O-O {[%clk 0:02:56.7]} 12... Qb6
{[%clk 0:02:59]} 13. Kh1 {[%clk 0:02:54.2]} 13... Nf6 {[%clk 0:02:28.3]} 14. h3
{[%clk 0:02:52.2]} 14... Nh5 {[%clk 0:02:26.5]} 15. Kh2 {[%clk 0:02:52.3]} 15...
c4 {[%clk 0:02:16.2]} 16. Bc2 {[%clk 0:02:48.1]} 16... Nd7 {[%clk 0:02:08.8]}
17. Qe2 {[%clk 0:02:44]} 17... Nc5 {[%clk 0:02:04.4]} 18. Qxc4 {[%clk
0:02:39.6]} 18... f5 {[%clk 0:01:39.6]} 19. exf5 {[%clk 0:02:32.5]} 19... Bxf5
{[%clk 0:01:39.3]} 20. Bxf5 {[%clk 0:02:31.6]} 20... gxf5 {[%clk 0:01:39.2]} 21.
Ng5 {[%clk 0:02:12.1]} 21... Rac8 {[%clk 0:01:31.5]} 22. a5 {[%clk 0:02:05.3]}
22... Qb3 {[%clk 0:01:01.1]} 23. Qxb3 {[%clk 0:01:33.7]} 23... Nxb3 {[%clk
0:01:03]} 24. Rb1 {[%clk 0:01:32.6]} 24... Nxa5 {[%clk 0:00:57.3]} 25. Ne6
{[%clk 0:01:26]} 25... Nc4 {[%clk 0:00:58.1]} 26. Nxg7 {[%clk 0:01:13]} 26...
Kxg7 {[%clk 0:00:58]} 27. b3 {[%clk 0:01:14.5]} 27... Nb6 {[%clk 0:00:53.6]} 28.
Bb2 {[%clk 0:01:16.1]} 28... Nf6 {[%clk 0:00:53.8]} 29. Rbe1 {[%clk 0:01:12.1]}
29... Kf7 {[%clk 0:00:52.7]} 30. Rxe8 {[%clk 0:01:05.8]} 30... Rxe8 {[%clk
0:00:53.1]} 31. Rd1 {[%clk 0:01:07.4]} 31... Re3 {[%clk 0:00:48.2]} 32. Kg1
{[%clk 0:01:04.1]} 32... Nh5 {[%clk 0:00:41.7]} 33. Kf2 {[%clk 0:01:03.3]} 33...
Re8 {[%clk 0:00:36.6]} 34. g3 {[%clk 0:01:03.2]} 34... Nf6 {[%clk 0:00:36.4]}
35. Kf3 {[%clk 0:00:55.5]} 35... Rc8 {[%clk 0:00:36.9]} 36. g4 {[%clk
0:00:54.8]} 36... fxg4+ {[%clk 0:00:36.9]} 37. hxg4 {[%clk 0:00:56.5]} 37... h6
{[%clk 0:00:37.6]} 38. g5 {[%clk 0:00:55.4]} 38... hxg5 {[%clk 0:00:38.3]} 39.
fxg5 {[%clk 0:00:57.3]} 39... Nh7 {[%clk 0:00:38.2]} 40. Ne4 {[%clk 0:00:50.7]}
40... Kg6 {[%clk 0:00:38.1]} 41. Rh1 {[%clk 0:00:39.8]} 41... Nxg5+ {[%clk
0:00:33.5]} 42. Nxg5 {[%clk 0:00:39.4]} 42... Kxg5 {[%clk 0:00:34.7]} 43. Ke4
{[%clk 0:00:38.8]} 43... Rc2 {[%clk 0:00:34.2]} 44. Bd4 {[%clk 0:00:37.2]} 44...
Re2+ {[%clk 0:00:34.4]} 45. Kd3 {[%clk 0:00:29.2]} 45... Re7 {[%clk 0:00:32.3]}
46. Bxb6 {[%clk 0:00:29.7]} 46... Kf5 {[%clk 0:00:31.1]} 47. Bd4 {[%clk
0:00:29.6]} 47... Rc7 {[%clk 0:00:30.2]} 48. Rh6 {[%clk 0:00:28]} 48... Rd7
{[%clk 0:00:31.2]} 49. b4 {[%clk 0:00:28.4]} 49... b5 {[%clk 0:00:31]} 50. Rf6+
{[%clk 0:00:27.6]} 50... Kg5 {[%clk 0:00:31.9]} 51. Re6 {[%clk 0:00:28]} 51...
Kf5 {[%clk 0:00:33]} 52. Bf6 {[%clk 0:00:26]} 52... Rf7 {[%clk 0:00:20.2]} 53.
Rxd6 {[%clk 0:00:19.8]} 53... Rxf6 {[%clk 0:00:16.8]} 54. Rxf6+ {[%clk
0:00:21.7]} 54... Kxf6 {[%clk 0:00:18.5]} 55. Kd4 {[%clk 0:00:22.7]} 55... Ke7
{[%clk 0:00:20.1]} 56. Kc5 {[%clk 0:00:23.2]} 56... Kd7 {[%clk 0:00:21.5]} 57.
Kb6 {[%clk 0:00:23.5]} 57... Kd6 {[%clk 0:00:23]} 58. Kxa6 {[%clk 0:00:24.6]}
58... Kxd5 {[%clk 0:00:24.7]} 59. Kxb5 {[%clk 0:00:25.6]} 59... Kd6 {[%clk
0:00:26.6]} 60. Ka6 {[%clk 0:00:26.2]} 60... Kd7 {[%clk 0:00:28.4]} 61. b5
{[%clk 0:00:25.6]} 61... Kc8 {[%clk 0:00:30.1]} 62. Ka7 {[%clk 0:00:26.2]} 1-0